Workbook

Sheet WA Electric - Sched 91
D4: RESIDENTIAL | E4: GENERAL SVC. | F4: LG. GEN. SVC. | G4: EX LG GEN SVC | H4: PUMPING | I4: ST & AREA LTG
A5: Source | C5: TOTAL | D5: SCHEDULE 1,2 | E5: SCH. 11,12 | F5: SCH. 21,22 | G5: SCHEDULE 25 | H5: SCH. 30, 31, 32 | I5: SCH. 41-48
A7: Forecast | B7: Total Annual Forecasted kWh's | C7: =SUM(D7:I7) -> 5703088059 | D7: =SUM('Billing Determinants'!$I19:$T19) -> 2376578850 | E7: =SUM('Billing Determinants'!I20:T20) -> 629198609.8 | F7: =SUM('Billing Determinants'!I21:T21) -> 1390329751 | G7: =SUM('Billing Determinants'!I22:T22) -> 1147942827 | H7: =SUM('Billing Determinants'!I23:T23) -> 141034812 | I7: =SUM('Billing Determinants'!I24:T24) -> 18003209.96 | L7: August 2019 - July 2020
B9: Present DSM Rates | D9: 0.00433 | E9: 0.00597 | F9: 0.0046 | G9: 0.00297 | H9: 0.00433 | I9: 0.02017
B11: Present Annual DSM Revenue | C11: =SUM(D11:I11) -> 24825614.65 | D11: =D7*D9 -> 10290586.42 | E11: =E7*E9 -> 3756315.7 | F11: 6395516.853 | G11: 3409390.196 | H11: 610680.7359 | I11: =I7*I9 -> 363124.7449
A13: UE-170485 | B13: Base Revenue | C13: =SUM(D13:I13) -> 502897000 | D13: =ROUND('Base Revenue'!F14*1000,-3) -> 214393000 | E13: =ROUND('Base Revenue'!F16*1000,-3) -> 75057000 | F13: =ROUND('Base Revenue'!F18*1000,-3) -> 129541000 | G13: =ROUND('Base Revenue'!F20*1000,-3) -> 65753000 | H13: =ROUND('Base Revenue'!F22*1000,-3) -> 11132000 | I13: =ROUND('Base Revenue'!F24*1000,-3) -> 7021000
B15: Percentage of Current Base Volumetric Revenue | C15: =SUM(D15:I15) -> 1 | D15: =D13/$C$13 -> 0.4263159255 | E15: =E13/$C$13 -> 0.1492492498 | F15: =F13/$C$13 -> 0.2575895263 | G15: =G13/$C$13 -> 0.1307484435 | H15: 0.02213574549 | I15: =I13/$C$13 -> 0.01396110933
B17: Revenue Requirement | C17: 17978577.98
B19: Revenue Spread Based on Current Allocation | C19: =SUM(D19:I19) -> 17978577.98 | D19: =$C$17*D15 -> 7664554.11 | E19: =$C$17*E15 -> 2683289.276 | F19: =$C$17*F15 -> 4631093.384 | G19: =$C$17*G15 -> 2350671.087 | H19: 397969.2264 | I19: =$C$17*I15 -> 251000.8928
B21: DSM Revenue Increase <Decrease> | C21: =C19-C11 -> -6847036.672 | D21: =D19-D11 -> -2626032.31 | E21: =E19-E11 -> -1073026.424 | F21: =F19-F11 -> -1764423.469 | G21: =G19-G11 -> -1058719.109 | H21: =H19-H11 -> -212711.5095 | I21: -112123.8522
B23: Proposed DSM Rates | D23: =D19/D7 -> 0.003225036742 | E23: =E19/E7 -> 0.004264614121 | F23: =F19/F7 -> 0.00333093166 | G23: 0.00204772488 | H23: 0.002821780104 | I23: =I19/I7 -> 0.01394200775
B25: Percentage Increase <Decrease> | C25: =C19/C11-1 -> -0.2758053232 | D25: =D19/D11-1 -> -0.2551878195 | E25: =E19/E11-1 -> -0.2856592762 | F25: =F19/F11-1 -> -0.2758844217 | G25: =G19/G11-1 -> -0.3105303435 | H25: -0.3483186828 | I25: =I19/I11-1 -> -0.3087750249
B27: Present Billed Revenue | C27: =SUM(D27:I27) -> 519238000 | D27: 220074000 | E27: 78692000 | F27: 131866000 | G27: 69157000 | H27: 12659000 | I27: 6790000
B29: Proposed Billed Revenue | C29: =SUM(D29:I29) -> 512390963.3 | D29: =D21+D27 -> 217447967.7 | E29: =E21+E27 -> 77618973.58 | F29: 130101576.5 | G29: =G21+G27 -> 68098280.89 | H29: =H21+H27 -> 12446288.49 | I29: =I21+I27 -> 6677876.148
B31: Overall Billed Percentage Increase <Decrease> | C31: =C29/C27-1 -> -0.01318670181 | D31: =D29/D27-1 -> -0.01193249684 | E31: =E29/E27-1 -> -0.01363577522 | F31: =F29/F27-1 -> -0.01338042762 | G31: =G29/G27-1 -> -0.01530892185 | H31: -0.01680318426 | I31: -0.01651308574
B34: Present DSM Revenue as a Percentage of Billed Revenue | C34: =C11/C27 -> 0.04781162906
B36: Percentage DSM Decrease | C36: =C21/C11 -> -0.2758053232
C38: Present | D38: Proposed | E38: Change
B39: Gross DSM Revenue | C39: =C11 -> 24825614.65 | D39: =C19 -> 17978577.98 | E39: =D39-C39 -> -6847036.672
B40: Revenue Conversion Factor | C40: ='Rev Conv Factor'!E22 -> 0.953323 | D40: ='Rev Conv Factor'!E22 -> 0.953323
B42: Net DSM Revenue | C42: =C39*C40 -> 23666829.43 | D42: =D39*D40 -> 17139391.89 | E42: =D42-C42 -> -6527437.542
C44: Present | D44: Proposed
B45: Average Monthly Bill @ 918 kWh's - Increase <Decrease> | C45: =9+(800*0.07708)+(118*0.0894) -> 81.2132 | D45: =9+(800*(0.07708+(D23-D9))+(118*(0.0894+(ROUND(D23,5)-D9)))) -> 80.19942939 | E45: =D45-C45 -> -1.013770607 | F45: =E45/C45 -> -0.01248283046
C47: Present | D47: Change | E47: Proposed
B48: Basic Charge | C48: 9 | D48: 0 | E48: =C48+D48 -> 9
B49: First 800 kWh's | C49: 0.07708 | D49: =ROUND($D$23,5)-ROUND($D$9,5) -> -0.0011 | E49: =C49+D49 -> 0.07598
B50: 801 - 1500 kWh's | C50: 0.0894 | D50: =ROUND($D$23,5)-ROUND($D$9,5) -> -0.0011 | E50: =C50+D50 -> 0.0883
B51: Over 1500 kWh's | C51: 0.10451 | D51: =ROUND($D$23,5)-ROUND($D$9,5) -> -0.0011 | E51: 0.10341
C53: =C48+ROUND((800*C49),2)+ROUND((118*C50),2) -> 81.21 | D53: =918*D49 -> -1.0098 | E53: =E48+ROUND((800*E49),2)+ROUND((118*E50),2) -> 80.2
E55: =D53/C53 -> -0.01243442926

Sheet Revenue By Month
A4: Forecasted Usage | D4: 2019-01-18 | E4: 2019-02-18 | F4: 2019-03-18 | G4: 2019-04-18 | H4: 2019-05-18 | I4: 2019-06-18 | J4: 2019-07-18 | K4: 2019-08-18 | L4: 2019-09-18 | M4: 2019-10-18 | N4: 2019-11-18 | O4: 2019-12-18 | P4: 2020-01-18 | Q4: 2020-02-18 | R4: 2020-03-18 | S4: 2020-04-18 | T4: 2020-05-18 | U4: 2020-06-18 | V4: 2020-07-18 | W4: 2020-08-18 | X4: 2020-09-18 | Y4: 2020-10-18 | Z4: 2020-11-18 | AA4: 2020-12-18 | AB4: 2021-01-18 | AC4: 2021-02-18 | AD4: 2021-03-18 | AE4: 2021-04-18 | AF4: 2021-05-18 | AG4: 2021-06-18 | AH4: 2021-07-18
B5: Residential Schedule 001 | D5: ='Billing Determinants'!B19 -> 0 | E5: ='Billing Determinants'!C19 -> 0 | F5: ='Billing Determinants'!D19 -> 0 | G5: ='Billing Determinants'!E19 -> 0 | H5: ='Billing Determinants'!F19 -> 156624519.6 | I5: ='Billing Determinants'!G19 -> 153422523.2 | J5: ='Billing Determinants'!H19 -> 190806254 | K5: ='Billing Determinants'!I19 -> 189012031.1 | L5: ='Billing Determinants'!J19 -> 151014678 | M5: ='Billing Determinants'!K19 -> 168788558.7 | N5: ='Billing Determinants'!L19 -> 218121702.5 | O5: ='Billing Determinants'!M19 -> 275559030.5 | P5: ='Billing Determinants'!N19 -> 268629663.4 | Q5: ='Billing Determinants'!O19 -> 217744893.8 | R5: ='Billing Determinants'!P19 -> 215352451.1 | S5: ='Billing Determinants'!Q19 -> 175004830.3 | T5: ='Billing Determinants'!R19 -> 156817550.8 | U5: ='Billing Determinants'!S19 -> 153447790.7 | V5: ='Billing Determinants'!T19 -> 187085668.9 | W5: ='Billing Determinants'!U19 -> 185505048.3 | X5: ='Billing Determinants'!V19 -> 152371883.5 | Y5: ='Billing Determinants'!W19 -> 169934455.1 | Z5: ='Billing Determinants'!X19 -> 217126335.1 | AA5: ='Billing Determinants'!Y19 -> 278188137.6 | AB5: ='Billing Determinants'!Z19 -> 275640089 | AC5: ='Billing Determinants'!AA19 -> 224332745.5 | AD5: ='Billing Determinants'!AB19 -> 217609548.2 | AE5: ='Billing Determinants'!AC19 -> 176817245.6 | AF5: ='Billing Determinants'!AD19 -> 158911030.2 | AG5: ='Billing Determinants'!AE19 -> 153582074.3 | AH5: ='Billing Determinants'!AF19 -> 184262168.9
B6: General Svc Schedule 011/012 | D6: ='Billing Determinants'!B20 -> 0 | E6: ='Billing Determinants'!C20 -> 0 | F6: ='Billing Determinants'!D20 -> 0 | G6: ='Billing Determinants'!E20 -> 0 | H6: ='Billing Determinants'!F20 -> 44718741.15 | I6: ='Billing Determinants'!G20 -> 46113534.97 | J6: ='Billing Determinants'!H20 -> 54584950.22 | K6: ='Billing Determinants'!I20 -> 54071176.69 | L6: ='Billing Determinants'!J20 -> 45850257.8 | M6: ='Billing Determinants'!K20 -> 48486986.77 | N6: ='Billing Determinants'!L20 -> 54616974.45 | O6: ='Billing Determinants'!M20 -> 62571479.9 | P6: ='Billing Determinants'!N20 -> 61553823.74 | Q6: ='Billing Determinants'!O20 -> 52529054.94 | R6: ='Billing Determinants'!P20 -> 53685828.42 | S6: ='Billing Determinants'!Q20 -> 47125129.84 | T6: ='Billing Determinants'!R20 -> 45983953.31 | U6: ='Billing Determinants'!S20 -> 47166495.83 | V6: ='Billing Determinants'!T20 -> 55557448.07 | W6: ='Billing Determinants'!U20 -> 54419492.94 | X6: ='Billing Determinants'!V20 -> 46661643.06 | Y6: ='Billing Determinants'!W20 -> 49409404.15 | Z6: ='Billing Determinants'!X20 -> 55520698.84 | AA6: ='Billing Determinants'!Y20 -> 63319107.58 | AB6: ='Billing Determinants'!Z20 -> 62197728.79 | AC6: ='Billing Determinants'!AA20 -> 53433443.38 | AD6: ='Billing Determinants'!AB20 -> 54424458.65 | AE6: ='Billing Determinants'!AC20 -> 47668812.85 | AF6: ='Billing Determinants'!AD20 -> 46579758 | AG6: ='Billing Determinants'!AE20 -> 47908287.44 | AH6: ='Billing Determinants'!AF20 -> 56294022.72
B7: Large Gen Svc Schedule 021/022 | D7: ='Billing Determinants'!B21 -> 0 | E7: ='Billing Determinants'!C21 -> 0 | F7: ='Billing Determinants'!D21 -> 0 | G7: ='Billing Determinants'!E21 -> 0 | H7: ='Billing Determinants'!F21 -> 108313446.9 | I7: ='Billing Determinants'!G21 -> 112519811.7 | J7: ='Billing Determinants'!H21 -> 128599755.6 | K7: ='Billing Determinants'!I21 -> 124354077.4 | L7: ='Billing Determinants'!J21 -> 108801090.1 | M7: ='Billing Determinants'!K21 -> 117549035.4 | N7: ='Billing Determinants'!L21 -> 119625110.7 | O7: ='Billing Determinants'!M21 -> 125081170.5 | P7: ='Billing Determinants'!N21 -> 120655433.8 | Q7: ='Billing Determinants'!O21 -> 106071712.2 | R7: ='Billing Determinants'!P21 -> 112726054.3 | S7: ='Billing Determinants'!Q21 -> 105647396.9 | T7: ='Billing Determinants'!R21 -> 108802635.5 | U7: ='Billing Determinants'!S21 -> 113154246.6 | V7: ='Billing Determinants'!T21 -> 127861787.2 | W7: ='Billing Determinants'!U21 -> 121859622.5 | X7: ='Billing Determinants'!V21 -> 107827478.1 | Y7: ='Billing Determinants'!W21 -> 118403672.3 | Z7: ='Billing Determinants'!X21 -> 120028262.2 | AA7: ='Billing Determinants'!Y21 -> 124130039.9 | AB7: ='Billing Determinants'!Z21 -> 119448619.1 | AC7: ='Billing Determinants'!AA21 -> 105897251.1 | AD7: ='Billing Determinants'!AB21 -> 111899282.7 | AE7: ='Billing Determinants'!AC21 -> 104954069.5 | AF7: ='Billing Determinants'!AD21 -> 108923477 | AG7: ='Billing Determinants'!AE21 -> 114122082.7 | AH7: ='Billing Determinants'!AF21 -> 128522654.9
B8: Extra Large Gen Schedule 25 | D8: ='Billing Determinants'!B22 -> 0 | E8: ='Billing Determinants'!C22 -> 0 | F8: ='Billing Determinants'!D22 -> 0 | G8: ='Billing Determinants'!E22 -> 0 | H8: ='Billing Determinants'!F22 -> 94315785.08 | I8: ='Billing Determinants'!G22 -> 96055580.24 | J8: ='Billing Determinants'!H22 -> 93099792.48 | K8: ='Billing Determinants'!I22 -> 99256250.53 | L8: ='Billing Determinants'!J22 -> 97718562.22 | M8: ='Billing Determinants'!K22 -> 96401446.02 | N8: ='Billing Determinants'!L22 -> 96489734.75 | O8: ='Billing Determinants'!M22 -> 94397352.57 | P8: ='Billing Determinants'!N22 -> 96007245.06 | Q8: ='Billing Determinants'!O22 -> 94786165.54 | R8: ='Billing Determinants'!P22 -> 92669864.33 | S8: ='Billing Determinants'!Q22 -> 95467199.04 | T8: ='Billing Determinants'!R22 -> 94727900.87 | U8: ='Billing Determinants'!S22 -> 95953694.6 | V8: ='Billing Determinants'!T22 -> 94067411.29 | W8: ='Billing Determinants'!U22 -> 98186324.61 | X8: ='Billing Determinants'!V22 -> 98007423.59 | Y8: ='Billing Determinants'!W22 -> 95483887.64 | Z8: ='Billing Determinants'!X22 -> 96235516.49 | AA8: ='Billing Determinants'!Y22 -> 93574724.95 | AB8: ='Billing Determinants'!Z22 -> 94912583.74 | AC8: ='Billing Determinants'!AA22 -> 94920175.3 | AD8: ='Billing Determinants'!AB22 -> 91664760.23 | AE8: ='Billing Determinants'!AC22 -> 95160123.71 | AF8: ='Billing Determinants'!AD22 -> 94224976.89 | AG8: ='Billing Determinants'!AE22 -> 95753709.52 | AH8: ='Billing Determinants'!AF22 -> 94257388.52
B9: Pumping Schedule 31/32 | D9: ='Billing Determinants'!B23 -> 0 | E9: ='Billing Determinants'!C23 -> 0 | F9: ='Billing Determinants'!D23 -> 0 | G9: ='Billing Determinants'!E23 -> 0 | H9: ='Billing Determinants'!F23 -> 12728088.58 | I9: ='Billing Determinants'!G23 -> 18735223.5 | J9: ='Billing Determinants'!H23 -> 25691636.84 | K9: ='Billing Determinants'!I23 -> 26106264.43 | L9: ='Billing Determinants'!J23 -> 18761823.6 | M9: ='Billing Determinants'!K23 -> 11287617.93 | N9: ='Billing Determinants'!L23 -> 5047261.801 | O9: ='Billing Determinants'!M23 -> 4184150.693 | P9: ='Billing Determinants'!N23 -> 4159559.246 | Q9: ='Billing Determinants'!O23 -> 3746894.099 | R9: ='Billing Determinants'!P23 -> 4417312.402 | S9: ='Billing Determinants'!Q23 -> 6663591.801 | T9: ='Billing Determinants'!R23 -> 12442406.02 | U9: ='Billing Determinants'!S23 -> 18672245.89 | V9: ='Billing Determinants'!T23 -> 25545684.07 | W9: ='Billing Determinants'!U23 -> 26226893.85 | X9: ='Billing Determinants'!V23 -> 19608846.82 | Y9: ='Billing Determinants'!W23 -> 12046047.78 | Z9: ='Billing Determinants'!X23 -> 5186108.998 | AA9: ='Billing Determinants'!Y23 -> 4177289.765 | AB9: ='Billing Determinants'!Z23 -> 4167276.217 | AC9: ='Billing Determinants'!AA23 -> 3776271.425 | AD9: ='Billing Determinants'!AB23 -> 4317922.095 | AE9: ='Billing Determinants'!AC23 -> 6302343.999 | AF9: ='Billing Determinants'!AD23 -> 12029513.66 | AG9: ='Billing Determinants'!AE23 -> 18669227.35 | AH9: ='Billing Determinants'!AF23 -> 25515306.28
B10: Street and Area Lights | D10: ='Billing Determinants'!B24 -> 0 | E10: ='Billing Determinants'!C24 -> 0 | F10: ='Billing Determinants'!D24 -> 0 | G10: ='Billing Determinants'!E24 -> 0 | H10: ='Billing Determinants'!F24 -> 1511923.904 | I10: ='Billing Determinants'!G24 -> 1513801.195 | J10: ='Billing Determinants'!H24 -> 1514576.969 | K10: ='Billing Determinants'!I24 -> 1512356.426 | L10: ='Billing Determinants'!J24 -> 1515051.995 | M10: ='Billing Determinants'!K24 -> 1500133.406 | N10: ='Billing Determinants'!L24 -> 1498305.247 | O10: ='Billing Determinants'!M24 -> 1523830.539 | P10: ='Billing Determinants'!N24 -> 1518395.117 | Q10: ='Billing Determinants'!O24 -> 1480773.105 | R10: ='Billing Determinants'!P24 -> 1486086.608 | S10: ='Billing Determinants'!Q24 -> 1493552.108 | T10: ='Billing Determinants'!R24 -> 1489472.885 | U10: ='Billing Determinants'!S24 -> 1492715.3 | V10: ='Billing Determinants'!T24 -> 1492537.225 | W10: ='Billing Determinants'!U24 -> 1487036.33 | X10: ='Billing Determinants'!V24 -> 1490798.322 | Y10: ='Billing Determinants'!W24 -> 1479472.266 | Z10: ='Billing Determinants'!X24 -> 1476952.754 | AA10: ='Billing Determinants'!Y24 -> 1496245.88 | AB10: ='Billing Determinants'!Z24 -> 1493390.909 | AC10: ='Billing Determinants'!AA24 -> 1466506.641 | AD10: ='Billing Determinants'!AB24 -> 1465773.936 | AE10: ='Billing Determinants'!AC24 -> 1471495.38 | AF10: ='Billing Determinants'!AD24 -> 1468461.319 | AG10: ='Billing Determinants'!AE24 -> 1471511.605 | AH10: ='Billing Determinants'!AF24 -> 1470862.797
A11: Total Forecasted Usage | D11: =SUM(D5:D10) -> 0 | E11: =SUM(E5:E10) -> 0 | F11: =SUM(F5:F10) -> 0 | G11: =SUM(G5:G10) -> 0 | H11: =SUM(H5:H10) -> 418212505.2 | I11: 428360474.8 | J11: 494296966.1 | K11: 494312156.6 | L11: 423661463.7 | M11: 444013778.2 | N11: 495399089.5 | O11: 563317014.7 | P11: 552524120.4 | Q11: 476359493.7 | R11: 480337597.1 | S11: =SUM(S5:S10) -> 431401699.9 | T11: 420263919.4 | U11: 429887188.8 | V11: 491610536.7 | W11: =SUM(W5:W10) -> 487684418.5 | X11: 425968073.4 | Y11: 446756939.2 | Z11: 495573874.5 | AA11: 564885545.7 | AB11: 557859687.7 | AC11: 483826393.3 | AD11: 481381745.8 | AE11: 432374090.9 | AF11: 422137217 | AG11: 431506892.9 | AH11: 490322404.1
D12: =D11-'Billing Determinants'!B25 -> 0 | E12: =E11-'Billing Determinants'!C25 -> 0 | F12: =F11-'Billing Determinants'!D25 -> 0 | G12: =G11-'Billing Determinants'!E25 -> 0 | H12: =H11-'Billing Determinants'!F25 -> 0 | I12: =I11-'Billing Determinants'!G25 -> 0 | J12: =J11-'Billing Determinants'!H25 -> 0 | K12: =K11-'Billing Determinants'!I25 -> 0 | L12: =L11-'Billing Determinants'!J25 -> 0 | M12: =M11-'Billing Determinants'!K25 -> 0 | N12: =N11-'Billing Determinants'!L25 -> 0 | O12: =O11-'Billing Determinants'!M25 -> 0 | P12: =P11-'Billing Determinants'!N25 -> 0 | Q12: =Q11-'Billing Determinants'!O25 -> 0 | R12: =R11-'Billing Determinants'!P25 -> 0 | S12: =S11-'Billing Determinants'!Q25 -> 0 | T12: =T11-'Billing Determinants'!R25 -> 0 | U12: =U11-'Billing Determinants'!S25 -> 0 | V12: =V11-'Billing Determinants'!T25 -> 0 | W12: =W11-'Billing Determinants'!U25 -> 0 | X12: =X11-'Billing Determinants'!V25 -> 0 | Y12: =Y11-'Billing Determinants'!W25 -> 0 | Z12: =Z11-'Billing Determinants'!X25 -> 0 | AA12: =AA11-'Billing Determinants'!Y25 -> 0 | AB12: =AB11-'Billing Determinants'!Z25 -> 0 | AC12: =AC11-'Billing Determinants'!AA25 -> 0 | AD12: =AD11-'Billing Determinants'!AB25 -> 0 | AE12: =AE11-'Billing Determinants'!AC25 -> 0 | AF12: =AF11-'Billing Determinants'!AD25 -> 0 | AG12: =AG11-'Billing Determinants'!AE25 -> 0 | AH12: =AH11-'Billing Determinants'!AF25 -> 0
A14: DSM Rates
B15: Residential Schedule 001 | D15: 0.00433 | E15: 0.00433 | F15: 0.00433 | G15: 0.00433 | H15: 0.00433 | I15: 0.00433 | J15: 0.00433 | K15: ='WA Electric - Sched 91'!$D$23 -> 0.003225036742 | L15: ='WA Electric - Sched 91'!$D$23 -> 0.003225036742 | M15: ='WA Electric - Sched 91'!$D$23 -> 0.003225036742 | N15: ='WA Electric - Sched 91'!$D$23 -> 0.003225036742 | O15: ='WA Electric - Sched 91'!$D$23 -> 0.003225036742 | P15: ='WA Electric - Sched 91'!$D$23 -> 0.003225036742 | Q15: ='WA Electric - Sched 91'!$D$23 -> 0.003225036742 | R15: ='WA Electric - Sched 91'!$D$23 -> 0.003225036742 | S15: ='WA Electric - Sched 91'!$D$23 -> 0.003225036742 | T15: ='WA Electric - Sched 91'!$D$23 -> 0.003225036742 | U15: ='WA Electric - Sched 91'!$D$23 -> 0.003225036742 | V15: ='WA Electric - Sched 91'!$D$23 -> 0.003225036742 | W15: ='WA Electric - Sched 91'!$D$23 -> 0.003225036742 | X15: ='WA Electric - Sched 91'!$D$23 -> 0.003225036742 | Y15: ='WA Electric - Sched 91'!$D$23 -> 0.003225036742 | Z15: ='WA Electric - Sched 91'!$D$23 -> 0.003225036742 | AA15: ='WA Electric - Sched 91'!$D$23 -> 0.003225036742 | AB15: ='WA Electric - Sched 91'!$D$23 -> 0.003225036742 | AC15: ='WA Electric - Sched 91'!$D$23 -> 0.003225036742 | AD15: ='WA Electric - Sched 91'!$D$23 -> 0.003225036742 | AE15: ='WA Electric - Sched 91'!$D$23 -> 0.003225036742 | AF15: ='WA Electric - Sched 91'!$D$23 -> 0.003225036742 | AG15: ='WA Electric - Sched 91'!$D$23 -> 0.003225036742 | AH15: ='WA Electric - Sched 91'!$D$23 -> 0.003225036742
B16: General Svc Schedule 011/012 | D16: 0.00597 | E16: 0.00597 | F16: 0.00597 | G16: 0.00597 | H16: 0.00597 | I16: 0.00597 | J16: 0.00597 | K16: ='WA Electric - Sched 91'!$E$23 -> 0.004264614121 | L16: ='WA Electric - Sched 91'!$E$23 -> 0.004264614121 | M16: ='WA Electric - Sched 91'!$E$23 -> 0.004264614121 | N16: ='WA Electric - Sched 91'!$E$23 -> 0.004264614121 | O16: ='WA Electric - Sched 91'!$E$23 -> 0.004264614121 | P16: ='WA Electric - Sched 91'!$E$23 -> 0.004264614121 | Q16: ='WA Electric - Sched 91'!$E$23 -> 0.004264614121 | R16: ='WA Electric - Sched 91'!$E$23 -> 0.004264614121 | S16: ='WA Electric - Sched 91'!$E$23 -> 0.004264614121 | T16: ='WA Electric - Sched 91'!$E$23 -> 0.004264614121 | U16: ='WA Electric - Sched 91'!$E$23 -> 0.004264614121 | V16: ='WA Electric - Sched 91'!$E$23 -> 0.004264614121 | W16: ='WA Electric - Sched 91'!$E$23 -> 0.004264614121 | X16: ='WA Electric - Sched 91'!$E$23 -> 0.004264614121 | Y16: ='WA Electric - Sched 91'!$E$23 -> 0.004264614121 | Z16: ='WA Electric - Sched 91'!$E$23 -> 0.004264614121 | AA16: ='WA Electric - Sched 91'!$E$23 -> 0.004264614121 | AB16: ='WA Electric - Sched 91'!$E$23 -> 0.004264614121 | AC16: ='WA Electric - Sched 91'!$E$23 -> 0.004264614121 | AD16: ='WA Electric - Sched 91'!$E$23 -> 0.004264614121 | AE16: ='WA Electric - Sched 91'!$E$23 -> 0.004264614121 | AF16: ='WA Electric - Sched 91'!$E$23 -> 0.004264614121 | AG16: ='WA Electric - Sched 91'!$E$23 -> 0.004264614121 | AH16: ='WA Electric - Sched 91'!$E$23 -> 0.004264614121
B17: Large Gen Svc Schedule 021/022 | D17: 0.0046 | E17: 0.0046 | F17: 0.0046 | G17: 0.0046 | H17: 0.0046 | I17: 0.0046 | J17: 0.0046 | K17: ='WA Electric - Sched 91'!$F$23 -> 0.00333093166 | L17: ='WA Electric - Sched 91'!$F$23 -> 0.00333093166 | M17: ='WA Electric - Sched 91'!$F$23 -> 0.00333093166 | N17: ='WA Electric - Sched 91'!$F$23 -> 0.00333093166 | O17: ='WA Electric - Sched 91'!$F$23 -> 0.00333093166 | P17: ='WA Electric - Sched 91'!$F$23 -> 0.00333093166 | Q17: ='WA Electric - Sched 91'!$F$23 -> 0.00333093166 | R17: ='WA Electric - Sched 91'!$F$23 -> 0.00333093166 | S17: ='WA Electric - Sched 91'!$F$23 -> 0.00333093166 | T17: ='WA Electric - Sched 91'!$F$23 -> 0.00333093166 | U17: ='WA Electric - Sched 91'!$F$23 -> 0.00333093166 | V17: ='WA Electric - Sched 91'!$F$23 -> 0.00333093166 | W17: ='WA Electric - Sched 91'!$F$23 -> 0.00333093166 | X17: ='WA Electric - Sched 91'!$F$23 -> 0.00333093166 | Y17: ='WA Electric - Sched 91'!$F$23 -> 0.00333093166 | Z17: ='WA Electric - Sched 91'!$F$23 -> 0.00333093166 | AA17: ='WA Electric - Sched 91'!$F$23 -> 0.00333093166 | AB17: ='WA Electric - Sched 91'!$F$23 -> 0.00333093166 | AC17: ='WA Electric - Sched 91'!$F$23 -> 0.00333093166 | AD17: ='WA Electric - Sched 91'!$F$23 -> 0.00333093166 | AE17: ='WA Electric - Sched 91'!$F$23 -> 0.00333093166 | AF17: ='WA Electric - Sched 91'!$F$23 -> 0.00333093166 | AG17: ='WA Electric - Sched 91'!$F$23 -> 0.00333093166 | AH17: ='WA Electric - Sched 91'!$F$23 -> 0.00333093166
B18: Extra Large Gen Schedule 25 | D18: 0.00297 | E18: 0.00297 | F18: 0.00297 | G18: 0.00297 | H18: 0.00297 | I18: 0.00297 | J18: 0.00297 | K18: ='WA Electric - Sched 91'!$G$23 -> 0.00204772488 | L18: ='WA Electric - Sched 91'!$G$23 -> 0.00204772488 | M18: ='WA Electric - Sched 91'!$G$23 -> 0.00204772488 | N18: ='WA Electric - Sched 91'!$G$23 -> 0.00204772488 | O18: ='WA Electric - Sched 91'!$G$23 -> 0.00204772488 | P18: ='WA Electric - Sched 91'!$G$23 -> 0.00204772488 | Q18: ='WA Electric - Sched 91'!$G$23 -> 0.00204772488 | R18: ='WA Electric - Sched 91'!$G$23 -> 0.00204772488 | S18: ='WA Electric - Sched 91'!$G$23 -> 0.00204772488 | T18: ='WA Electric - Sched 91'!$G$23 -> 0.00204772488 | U18: ='WA Electric - Sched 91'!$G$23 -> 0.00204772488 | V18: ='WA Electric - Sched 91'!$G$23 -> 0.00204772488 | W18: ='WA Electric - Sched 91'!$G$23 -> 0.00204772488 | X18: ='WA Electric - Sched 91'!$G$23 -> 0.00204772488 | Y18: ='WA Electric - Sched 91'!$G$23 -> 0.00204772488 | Z18: ='WA Electric - Sched 91'!$G$23 -> 0.00204772488 | AA18: ='WA Electric - Sched 91'!$G$23 -> 0.00204772488 | AB18: ='WA Electric - Sched 91'!$G$23 -> 0.00204772488 | AC18: ='WA Electric - Sched 91'!$G$23 -> 0.00204772488 | AD18: ='WA Electric - Sched 91'!$G$23 -> 0.00204772488 | AE18: ='WA Electric - Sched 91'!$G$23 -> 0.00204772488 | AF18: ='WA Electric - Sched 91'!$G$23 -> 0.00204772488 | AG18: ='WA Electric - Sched 91'!$G$23 -> 0.00204772488 | AH18: ='WA Electric - Sched 91'!$G$23 -> 0.00204772488
B19: Pumping Schedule 31/32 | D19: 0.00433 | E19: 0.00433 | F19: 0.00433 | G19: 0.00433 | H19: 0.00433 | I19: 0.00433 | J19: 0.00433 | K19: ='WA Electric - Sched 91'!$H$23 -> 0.002821780104 | L19: ='WA Electric - Sched 91'!$H$23 -> 0.002821780104 | M19: ='WA Electric - Sched 91'!$H$23 -> 0.002821780104 | N19: ='WA Electric - Sched 91'!$H$23 -> 0.002821780104 | O19: ='WA Electric - Sched 91'!$H$23 -> 0.002821780104 | P19: ='WA Electric - Sched 91'!$H$23 -> 0.002821780104 | Q19: ='WA Electric - Sched 91'!$H$23 -> 0.002821780104 | R19: ='WA Electric - Sched 91'!$H$23 -> 0.002821780104 | S19: ='WA Electric - Sched 91'!$H$23 -> 0.002821780104 | T19: ='WA Electric - Sched 91'!$H$23 -> 0.002821780104 | U19: ='WA Electric - Sched 91'!$H$23 -> 0.002821780104 | V19: ='WA Electric - Sched 91'!$H$23 -> 0.002821780104 | W19: ='WA Electric - Sched 91'!$H$23 -> 0.002821780104 | X19: ='WA Electric - Sched 91'!$H$23 -> 0.002821780104 | Y19: ='WA Electric - Sched 91'!$H$23 -> 0.002821780104 | Z19: ='WA Electric - Sched 91'!$H$23 -> 0.002821780104 | AA19: ='WA Electric - Sched 91'!$H$23 -> 0.002821780104 | AB19: ='WA Electric - Sched 91'!$H$23 -> 0.002821780104 | AC19: ='WA Electric - Sched 91'!$H$23 -> 0.002821780104 | AD19: ='WA Electric - Sched 91'!$H$23 -> 0.002821780104 | AE19: ='WA Electric - Sched 91'!$H$23 -> 0.002821780104 | AF19: ='WA Electric - Sched 91'!$H$23 -> 0.002821780104 | AG19: ='WA Electric - Sched 91'!$H$23 -> 0.002821780104 | AH19: ='WA Electric - Sched 91'!$H$23 -> 0.002821780104
B20: Street and Area Lights | D20: 0.02017 | E20: 0.02017 | F20: 0.02017 | G20: 0.02017 | H20: 0.02017 | I20: 0.02017 | J20: 0.02017 | K20: ='WA Electric - Sched 91'!$I$23 -> 0.01394200775 | L20: ='WA Electric - Sched 91'!$I$23 -> 0.01394200775 | M20: ='WA Electric - Sched 91'!$I$23 -> 0.01394200775 | N20: ='WA Electric - Sched 91'!$I$23 -> 0.01394200775 | O20: ='WA Electric - Sched 91'!$I$23 -> 0.01394200775 | P20: ='WA Electric - Sched 91'!$I$23 -> 0.01394200775 | Q20: ='WA Electric - Sched 91'!$I$23 -> 0.01394200775 | R20: ='WA Electric - Sched 91'!$I$23 -> 0.01394200775 | S20: ='WA Electric - Sched 91'!$I$23 -> 0.01394200775 | T20: ='WA Electric - Sched 91'!$I$23 -> 0.01394200775 | U20: ='WA Electric - Sched 91'!$I$23 -> 0.01394200775 | V20: ='WA Electric - Sched 91'!$I$23 -> 0.01394200775 | W20: ='WA Electric - Sched 91'!$I$23 -> 0.01394200775 | X20: ='WA Electric - Sched 91'!$I$23 -> 0.01394200775 | Y20: ='WA Electric - Sched 91'!$I$23 -> 0.01394200775 | Z20: ='WA Electric - Sched 91'!$I$23 -> 0.01394200775 | AA20: ='WA Electric - Sched 91'!$I$23 -> 0.01394200775 | AB20: ='WA Electric - Sched 91'!$I$23 -> 0.01394200775 | AC20: ='WA Electric - Sched 91'!$I$23 -> 0.01394200775 | AD20: ='WA Electric - Sched 91'!$I$23 -> 0.01394200775 | AE20: ='WA Electric - Sched 91'!$I$23 -> 0.01394200775 | AF20: ='WA Electric - Sched 91'!$I$23 -> 0.01394200775 | AG20: ='WA Electric - Sched 91'!$I$23 -> 0.01394200775 | AH20: ='WA Electric - Sched 91'!$I$23 -> 0.01394200775
A23: Gross DSM Revenue | D23: =D4 -> 2019-01-18 | E23: =E4 -> 2019-02-18 | F23: 2019-03-18 | G23: 2019-04-18 | H23: 2019-05-18 | I23: 2019-06-18 | J23: 2019-07-18 | K23: 2019-08-18 | L23: 2019-09-18 | M23: 2019-10-18 | N23: 2019-11-18 | O23: 2019-12-18 | P23: 2020-01-18 | Q23: 2020-02-18 | R23: 2020-03-18 | S23: 2020-04-18 | T23: 2020-05-18 | U23: 2020-06-18 | V23: 2020-07-18 | W23: =W4 -> 2020-08-18 | X23: 2020-09-18 | Y23: 2020-10-18 | Z23: 2020-11-18 | AA23: 2020-12-18 | AB23: 2021-01-18 | AC23: 2021-02-18 | AD23: 2021-03-18 | AE23: 2021-04-18 | AF23: 2021-05-18 | AG23: 2021-06-18 | AH23: 2021-07-18
B24: Residential Schedule 001 | D24: =D5*D15 -> 0 | E24: =E5*E15 -> 0 | F24: =F5*F15 -> 0 | G24: =G5*G15 -> 0 | H24: =H5*H15 -> 678184.1699 | I24: =I5*I15 -> 664319.5255 | J24: 826191.0798 | K24: 609570.745 | L24: 487027.885 | M24: 544349.3035 | N24: 703450.5047 | O24: 888687.9977 | P24: 866340.5345 | Q24: 702235.2827 | R24: 694519.5672 | S24: =S5*S15 -> 564397.0076 | T24: 505742.363 | U24: 494874.7628 | V24: =V5*V15 -> 603358.156 | W24: =W5*W15 -> 598260.5966 | X24: 491404.9227 | Y24: 548044.8614 | Z24: 700240.4084 | AA24: 897166.9648 | AB24: 888949.4143 | AC24: 723481.3466 | AD24: 701798.7883 | AE24: 570242.1135 | AF24: 512493.911 | AG24: 495307.8325 | AH24: 594252.2648
B25: General Svc Schedule 011/012 | D25: =D6*D16 -> 0 | E25: =E6*E16 -> 0 | F25: 0 | G25: =G6*G16 -> 0 | H25: 266970.8847 | I25: 275297.8038 | J25: 325872.1528 | K25: 230592.7037 | L25: 195533.6569 | M25: 206778.2885 | N25: 232920.3205 | O25: 266843.2168 | P25: 262503.3059 | Q25: 224016.1495 | R25: 228949.342 | S25: =S6*S16 -> 200970.4942 | T25: 196103.8166 | U25: 201146.9042 | V25: 236931.0776 | W25: =W6*W16 -> 232078.138 | X25: 198993.9019 | Y25: 210712.0427 | Z25: 236774.3563 | AA25: 270031.5603 | AB25: 265249.3125 | AC25: 227873.0172 | AD25: 232099.3149 | AE25: 203289.0924 | AF25: 198644.6937 | AG25: 204310.3591 | AH25: 240072.2842
B26: Large Gen Svc Schedule 021/022 | D26: =D7*D17 -> 0 | E26: 0 | F26: 0 | G26: =G7*G17 -> 0 | H26: 498241.8558 | I26: 517591.1338 | J26: 591558.8759 | K26: 414214.9334 | L26: 362408.9956 | M26: 391547.8036 | N26: 398463.0686 | O26: 416636.831 | P26: 401895.0045 | Q26: 353317.6246 | R26: 375482.7831 | S26: =S7*S17 -> 351904.259 | T26: 362414.1434 | U26: 376909.0624 | V26: 425898.875 | W26: =W7*W17 -> 405906.0746 | X26: 359165.9607 | Y26: 394394.5406 | Z26: 399805.9388 | AA26: 413468.68 | AB26: 397875.1871 | AC26: 352736.5063 | AD26: 372728.8635 | AE26: 349594.8328 | AF26: 362816.658 | AG26: 380132.8584 | AH26: 428100.1803
B27: Extra Large Gen Schedule 25 | D27: =D8*D18 -> 0 | E27: 0 | F27: 0 | G27: =G8*G18 -> 0 | H27: 280117.8817 | I27: 285285.0733 | J27: 276506.3837 | K27: 203249.4937 | L27: 200100.7311 | M27: 197403.6395 | N27: 197584.4305 | O27: 193299.8074 | P27: 196596.4244 | Q27: 194095.9894 | R27: 189762.3868 | S27: =S8*S18 -> 195490.5587 | T27: 193976.6794 | U27: 196486.7677 | V27: 192624.1785 | W27: =W8*W18 -> 201058.5798 | X27: 200692.2397 | Y27: 195524.7323 | Z27: 197063.8614 | AA27: 191615.2924 | AB27: 194354.8591 | AC27: 194370.4046 | AD27: 187704.2101 | AE27: 194861.7529 | AF27: 192946.8295 | AG27: 196077.2533 | AH27: 193013.1996
B28: Pumping Schedule 31/32 | D28: =D9*D19 -> 0 | E28: 0 | F28: 0 | G28: =G9*G19 -> 0 | H28: 55112.62356 | I28: 81123.51775 | J28: 111244.7875 | K28: 73666.13755 | L28: 52941.74053 | M28: 31851.17569 | N28: 14242.26293 | O28: 11806.75317 | P28: 11737.36152 | Q28: 10572.91122 | R28: 12464.68425 | S28: =S9*S19 -> 18803.19076 | T28: 35109.73374 | U28: 52688.97196 | V28: 72084.30304 | W28: =W9*W19 -> 74006.52724 | X28: 55331.85381 | Y28: 33991.29797 | Z28: 14634.05919 | AA28: 11787.39315 | AB28: 11759.13711 | AC28: 10655.80757 | AD28: 12184.22666 | AE28: 17783.8289 | AF28: 33944.64229 | AG28: 52680.45429 | AH28: 71998.58359
B29: Street and Area Lights | D29: =D10*D20 -> 0 | E29: 0 | F29: 0 | G29: 0 | H29: 30495.50514 | I29: 30533.3701 | J29: 30549.01747 | K29: 21085.285 | L29: 21122.86665 | M29: =M10*M20 -> 20914.87157 | N29: 20889.38336 | O29: 21245.25718 | P29: 21169.47648 | Q29: 20644.95011 | R29: =R10*R20 -> 20719.031 | S29: =S10*S20 -> 20823.11507 | T29: 20766.2425 | U29: 20811.44828 | V29: 20808.96556 | W29: =W10*W20 -> 20732.27204 | X29: 20784.72176 | Y29: 20626.8138 | Z29: 20591.68675 | AA29: 20860.67165 | AB29: 20820.86762 | AC29: 20446.04695 | AD29: 20435.83157 | AE29: 20515.59999 | AF29: 20473.29909 | AG29: 20515.8262 | AH29: 20506.78052
B30: Total | D30: =SUM(D24:D29) -> 0 | E30: 0 | F30: 0 | G30: 0 | H30: 1809122.921 | I30: 1854150.424 | J30: 2161922.297 | K30: 1552379.298 | L30: 1319135.876 | M30: 1392845.082 | N30: 1567549.971 | O30: 1798519.863 | P30: =SUM(P24:P29) -> 1760242.107 | Q30: 1504882.907 | R30: 1521897.794 | S30: =SUM(S24:S29) -> 1352388.625 | T30: 1314112.979 | U30: 1342917.917 | V30: 1551705.556 | W30: =SUM(W24:W29) -> 1532042.188 | X30: 1326373.601 | Y30: 1403294.289 | Z30: 1569110.311 | AA30: 1804930.562 | AB30: 1779008.778 | AC30: 1529563.129 | AD30: 1526951.235 | AE30: 1356287.22 | AF30: 1321320.034 | AG30: 1349024.584 | AH30: 1547943.293 | AJ30: =SUM(K30:V30)-'WA Electric - Sched 91'!D39 -> 0
A32: Net DSM Revenue | C32: ='Rev Conv Factor'!E22 -> 0.953323 | D32: =D4 -> 2019-01-18 | E32: =E4 -> 2019-02-18 | F32: 2019-03-18 | G32: 2019-04-18 | H32: 2019-05-18 | I32: 2019-06-18 | J32: 2019-07-18 | K32: 2019-08-18 | L32: 2019-09-18 | M32: 2019-10-18 | N32: 2019-11-18 | O32: 2019-12-18 | P32: 2020-01-18 | Q32: 2020-02-18 | R32: 2020-03-18 | S32: 2020-04-18 | T32: 2020-05-18 | U32: 2020-06-18 | V32: 2020-07-18 | W32: =W4 -> 2020-08-18 | X32: 2020-09-18 | Y32: 2020-10-18 | Z32: 2020-11-18 | AA32: 2020-12-18 | AB32: 2021-01-18 | AC32: 2021-02-18 | AD32: 2021-03-18 | AE32: 2021-04-18 | AF32: 2021-05-18 | AG32: 2021-06-18 | AH32: 2021-07-18
B33: Residential Schedule 001 | D33: =D24*$C$32 -> 0 | E33: =E24*$C$32 -> 0 | F33: =F24*$C$32 -> 0 | G33: =G24*$C$32 -> 0 | H33: =H24*$C$32 -> 646528.5674 | I33: =I24*$C$32 -> 633311.083 | J33: 787626.9588 | K33: 581117.8114 | L33: 464294.8845 | M33: 518940.711 | N33: 670615.5455 | O33: 847206.708 | P33: 825902.3574 | Q33: 669457.0464 | R33: 662101.4774 | S33: =S24*$C$32 -> 538052.6485 | T33: 482135.8267 | U33: 471775.4935 | V33: =V24*$C$32 -> 575195.2073 | W33: =W24*$C$32 -> 570335.5867 | X33: 468467.6151 | Y33: 522463.7714 | Z33: 667555.2869 | AA33: 855289.9024 | AB33: 847455.9225 | AC33: 689711.4078 | AD33: 669040.9263 | AE33: 543624.9223 | AF33: 488572.2327 | AG33: 472188.3488 | AH33: 566514.3518
B34: General Svc Schedule 011/012 | D34: =D25*$C$32 -> 0 | E34: =E25*$C$32 -> 0 | F34: 0 | G34: =G25*$C$32 -> 0 | H34: 254509.4847 | I34: 262447.7282 | J34: 310661.4183 | K34: 219829.328 | L34: 186406.7324 | M34: 197126.4983 | N34: 222048.2987 | O34: 254387.7759 | P34: 250250.4391 | Q34: 213559.7477 | R34: 218262.6736 | S34: =S25*$C$32 -> 191589.7944 | T34: 186950.2788 | U34: 191757.9701 | V34: 225871.8457 | W34: =W25*$C$32 -> 221245.4268 | X34: 189705.4635 | Y34: 200876.6366 | Z34: 225722.4397 | AA34: 257427.2972 | AB34: 252868.2704 | AC34: 217236.5884 | AD34: 221265.6152 | AE34: 193800.1675 | AF34: 189372.5554 | AG34: 194773.7645 | AH34: 228866.4302
B35: Large Gen Svc Schedule 021/022 | D35: =D26*$C$32 -> 0 | E35: 0 | F35: 0 | G35: =G26*$C$32 -> 0 | H35: 474985.4207 | I35: 493431.5324 | J35: 563946.6822 | K35: 394880.6229 | L35: 345492.831 | M35: 373271.5268 | N35: 379864.008 | O35: 397189.4736 | P35: 383135.7514 | Q35: 336825.8178 | R35: 357956.3733 | S35: =S26*$C$32 -> 335478.4239 | T35: 345497.7384 | U35: 359316.0781 | V35: 406019.1932 | W35: =W26*$C$32 -> 386959.5967 | X35: 342401.1712 | Y35: 375985.3866 | Z35: 381144.197 | AA35: 394169.2024 | AB35: 379303.567 | AC35: 336271.8244 | AD35: 355330.9984 | AE35: 333276.7948 | AF35: 345881.4649 | AG35: 362389.397 | AH35: 408117.7482
B36: Extra Large Gen Schedule 25 | D36: =D27*$C$32 -> 0 | E36: 0 | F36: 0 | G36: =G27*$C$32 -> 0 | H36: 267042.8193 | I36: 271968.8219 | J36: 263599.8952 | K36: 193762.4171 | L36: 190760.6293 | M36: 188189.4298 | N36: 188361.782 | O36: 184277.1523 | P36: 187419.8931 | Q36: 185036.1709 | R36: 180904.8479 | S36: =S27*$C$32 -> 186365.6459 | T36: 184922.43 | U36: 187315.3549 | V36: 183633.0597 | W36: =W27*$C$32 -> 191673.7684 | X36: 191324.528 | Y36: 186398.2244 | Z36: 187865.5116 | AA36: 182671.2654 | AB36: 185282.9574 | AC36: 185297.7772 | AD36: 178942.7407 | AE36: 185766.1909 | AF36: 183940.6503 | AG36: 186924.9554 | AH36: 184003.9225
B37: Pumping Schedule 31/32 | D37: =D28*$C$32 -> 0 | E37: 0 | F37: 0 | G37: =G28*$C$32 -> 0 | H37: 52540.13163 | I37: 77336.91531 | J37: 106052.2146 | K37: 70227.62325 | L37: 50470.57891 | M37: 30364.45837 | N37: 13577.47682 | O37: 11255.64936 | P37: 11189.4967 | Q37: 10079.39944 | R37: 11882.87018 | S37: =S28*$C$32 -> 17925.51423 | T37: 33470.9167 | U37: 50229.60881 | V37: 68719.62403 | W37: =W28*$C$32 -> 70552.12457 | X37: 52749.12887 | Y37: 32404.68615 | Z37: 13950.98521 | AA37: 11237.193 | AB37: 11210.25587 | AC37: 10158.42644 | AD37: 11615.50351 | AE37: 16953.73312 | AF37: 32360.20822 | AG37: 50221.48872 | AH37: 68637.90571
B38: Street and Area Lights | D38: =D29*$C$32 -> 0 | E38: 0 | F38: 0 | G38: =G29*$C$32 -> 0 | H38: =H29*$C$32 -> 29072.06645 | I38: 29108.16398 | J38: 29123.08098 | K38: 20101.08716 | L38: 20136.91461 | M38: 19938.62811 | N38: 19914.32961 | O38: 20253.59231 | P38: 20181.34883 | Q38: 19681.30577 | R38: 19751.92879 | S38: =S29*$C$32 -> 19851.15453 | T38: 19796.9366 | U38: 19840.03231 | V38: 19837.66548 | W38: =W29*$C$32 -> 19764.55177 | X38: 19814.5533 | Y38: 19664.01601 | Z38: 19630.52858 | AA38: 19886.95808 | AB38: 19849.01198 | AC38: 19491.68682 | AD38: 19481.94826 | AE38: 19557.99333 | AF38: 19517.66691 | AG38: 19558.20898 | AH38: 19549.58552
B39: Total | D39: =SUM(D33:D38) -> 0 | E39: =SUM(E33:E38) -> 0 | F39: =SUM(F33:F38) -> 0 | G39: =SUM(G33:G38) -> 0 | H39: 1724678.49 | I39: 1767604.245 | J39: 2061010.25 | K39: 1479918.89 | L39: 1257562.571 | M39: 1327831.252 | N39: 1494381.441 | O39: 1714570.352 | P39: 1678079.286 | Q39: 1434639.488 | R39: 1450860.171 | S39: =SUM(S33:S38) -> 1289263.181 | T39: 1252774.127 | U39: 1280234.538 | V39: 1479276.595 | W39: =SUM(W33:W38) -> 1460531.055 | X39: 1264462.46 | Y39: 1337792.721 | Z39: 1495868.949 | AA39: 1720681.818 | AB39: 1695969.985 | AC39: 1458167.711 | AD39: 1455677.732 | AE39: 1292979.802 | AF39: 1259644.778 | AG39: 1286056.163 | AH39: 1475689.944 | AJ39: =SUM(K39:V39)-'WA Electric - Sched 91'!D42 -> 0

Sheet DSM Balance
I1: 2019 | U1: 2020 | AG1: 2021
C2: End January | D2: End February | E2: End March | F2: End April | G2: End May | H2: End June | I2: End July | J2: End August | K2: End September | L2: End October | M2: End November | N2: End December | O2: End January | P2: End February | Q2: End March | R2: End April | S2: End May | T2: End June | U2: End July | V2: End August | W2: End September | X2: End October | Y2: End November | Z2: End December | AA2: End January | AB2: End February | AC2: End March | AD2: End April | AE2: End May | AF2: End June | AG2: End July
A3: Expected elec tariff rider revenue | G3: =-'Revenue By Month'!H39 -> -1724678.49 | H3: =-'Revenue By Month'!I39 -> -1767604.245 | I3: =-'Revenue By Month'!J39 -> -2061010.25 | J3: =-'Revenue By Month'!K39 -> -1479918.89 | K3: =-'Revenue By Month'!L39 -> -1257562.571 | L3: =-'Revenue By Month'!M39 -> -1327831.252 | M3: =-'Revenue By Month'!N39 -> -1494381.441 | N3: =-'Revenue By Month'!O39 -> -1714570.352 | O3: =-'Revenue By Month'!P39 -> -1678079.286 | P3: =-'Revenue By Month'!Q39 -> -1434639.488 | Q3: =-'Revenue By Month'!R39 -> -1450860.171 | R3: =-'Revenue By Month'!S39 -> -1289263.181 | S3: =-'Revenue By Month'!T39 -> -1252774.127 | T3: =-'Revenue By Month'!U39 -> -1280234.538 | U3: =-'Revenue By Month'!V39 -> -1479276.595 | V3: =-'Revenue By Month'!W39 -> -1460531.055 | W3: =-'Revenue By Month'!X39 -> -1264462.46 | X3: =-'Revenue By Month'!Y39 -> -1337792.721 | Y3: =-'Revenue By Month'!Z39 -> -1495868.949 | Z3: =-'Revenue By Month'!AA39 -> -1720681.818 | AA3: =-'Revenue By Month'!AB39 -> -1695969.985 | AB3: =-'Revenue By Month'!AC39 -> -1458167.711 | AC3: =-'Revenue By Month'!AD39 -> -1455677.732 | AD3: =-'Revenue By Month'!AE39 -> -1292979.802 | AE3: =-'Revenue By Month'!AF39 -> -1259644.778 | AF3: =-'Revenue By Month'!AG39 -> -1286056.163 | AG3: =-'Revenue By Month'!AH39 -> -1475689.944
A4: Expected DSM expenditures | G4: 941558.08 | H4: 1680231.66 | I4: 952516.73 | J4: 1000506.37 | K4: 932751.18 | L4: 1434287 | M4: 1259849.15 | N4: 2133151.44 | O4: 753031.5067 | P4: 1041303.127 | Q4: 1293876.967 | R4: 1058190.887 | S4: 822849.7467 | T4: 1561523.327 | U4: 833808.3967 | V4: 881798.0367 | W4: 814042.8467 | X4: 1315578.667 | Y4: 1141140.817 | Z4: 2014443.107 | AA4: 753031.5067 | AB4: 1041303.127 | AC4: 1293876.967 | AD4: 1058190.887 | AE4: 822849.7467 | AF4: 1561523.327 | AG4: 833808.3967
A5: Net change in balance | E5: =E3+E4 -> 0 | F5: =F3+F4 -> 0 | G5: -783120.4102 | H5: -87372.58481 | I5: -1108493.52 | J5: -479412.5198 | K5: -324811.3905 | L5: 106455.7476 | M5: -234532.2907 | N5: 418581.0884 | O5: -925047.7798 | P5: -393336.3613 | Q5: -156983.2044 | R5: -231072.2948 | S5: -429924.3805 | T5: 281288.789 | U5: -645468.1987 | V5: =V3+V4 -> -578733.0183 | W5: -450419.6134 | X5: -22214.05455 | Y5: -354728.1322 | Z5: 293761.2882 | AA5: -942938.4784 | AB5: -416864.5844 | AC5: -161800.7656 | AD5: -234788.9152 | AE5: -436795.0318 | AF5: 275467.1634 | AG5: -641881.5473
A6: Accounting Adjustment
A7: Elec Tariff rider balance | E7: 0 | F7: 8665185 | G7: =G5+G6+F7 -> 7882064.59 | H7: 7794692.005 | I7: 6686198.485 | J7: 6206785.965 | K7: 5881974.575 | L7: 5988430.322 | M7: 5753898.032 | N7: 6172479.12 | O7: 5247431.34 | P7: 4854094.979 | Q7: 4697111.775 | R7: 4466039.48 | S7: 4036115.099 | T7: 4317403.888 | U7: =T7+U5+U6 -> 3671935.689 | V7: =U7+V5+V6 -> 3093202.671 | W7: 2642783.058 | X7: 2620569.003 | Y7: 2265840.871 | Z7: 2559602.159 | AA7: 1616663.681 | AB7: 1199799.096 | AC7: 1037998.331 | AD7: 803209.4157 | AE7: 366414.3839 | AF7: 641881.5473 | AG7: =AF7+AG5+AG6 -> 5.355104804e-09
A13: Tariff rider balance annual interest rate | B13: 0 | C13: applied to E "shareholder owes customer" balances.
A14: 2015 Washington electric DSM budget | C14: CY 2016 expected expenditures
A15: 2016 Washington electric DSM budget | B15: =B14*1.02 -> 0 | C15: CY 2017 expected expenditures + 2% increase
A19: End of July Balance | B19: =I7 -> 6686198.485 | C19: Underfunded "Surcharge"
A20: Aug 2019 - July 2021 Expenditure Budget | B20: =SUM(J4:AG4) -> 27656716.53
A21: Aug 2019 - July 2021 Forecasted Revenue | B21: =SUM(J3:AG3) -> -34342915.01
B22: =SUM(C6:U6) -> 0
A23: Total Projected DSM Balance July 2021 | B23: =B19+B20+B22+B21 -> 0 | C23: Overfunded
B25: Present | C25: Proposed
A26: Gross Annual Revenue Recovered | B26: ='WA Electric - Sched 91'!C11 -> 24825614.65 | C26: ='WA Electric - Sched 91'!C19 -> 17978577.98 | D26: =C26-B26 -> -6847036.672
A27: Revenue Conversion Factor | B27: ='Rev Conv Factor'!E22 -> 0.953323 | C27: ='Rev Conv Factor'!E22 -> 0.953323
A29: Net Annual Revenue to be Recovered | B29: =B26*B27 -> 23666829.43 | C29: =C26*C27 -> 17139391.89 | D29: =C29-B29 -> -6527437.542
A33: August 2019 - July 2020
A34: Annual DSM Expense | B34: =SUM(J4:U4) -> 14125129.1
A35: Annual DSM Revenue | B35: =SUM(J3:U3) -> -17139391.89
B36: =B34+B35 -> -3014262.795

Sheet Rev Conv Factor
A1: AVISTA UTILITIES
A2: Revenue Conversion Factor
A3: Washington - Electric System
A4: TWELVE MONTHS ENDED DECEMBER 31, 2016
A6: Line
A7: No. | C7: Description | E7: Factor
A9: 1 | C9: Revenues | E9: 1
C11: Expense:
A12: 2 | C12: Uncollectibles | E12: 0.0061825
A14: 3 | C14: Commission Fees | E14: 0.002
A16: 4 | C16: Washington Excise Tax | E16: 0.0384945
A18: 5 | C18: Franchise Fees | E18: 0
A20: 6 | C20: Total Expense | E20: =E12+E14+E16+E18 -> 0.046677
A22: 7 | C22: Net Operating Income Before FIT | E22: =E9-E20 -> 0.953323
A24: 8 | C24: Federal Income Tax @ 21% | E24: 0.200198
A26: 9 | C26: REVENUE CONVERSION FACTOR | E26: =E22-E24 -> 0.753125
A29: Source: UE-170485

Sheet Billing Determinants
A4: Forecasted Loads
D7: 2019-03-01 | E7: 2019-04-01 | F7: 2019-05-01 | G7: 2019-06-01 | H7: 2019-07-01 | I7: 2019-08-01 | J7: 2019-09-01 | K7: 2019-10-01 | L7: 2019-11-01 | M7: 2019-12-01 | N7: 2020-01-01 | O7: 2020-02-01 | P7: 2020-03-01 | Q7: 2020-04-01 | R7: 2020-05-01 | S7: 2020-06-01 | T7: 2020-07-01 | U7: 2020-08-01 | V7: 2020-09-01 | W7: 2020-10-01 | X7: 2020-11-01 | Y7: 2020-12-01 | Z7: 2021-01-01 | AA7: 2021-02-01 | AB7: 2021-03-01 | AC7: 2021-04-01 | AD7: 2021-05-01 | AE7: 2021-06-01 | AF7: 2021-07-01
A8: WA001 | F8: 156624519.6 | G8: 153422523.2 | H8: 190806254 | I8: 189012031.1 | J8: 151014678 | K8: 168788558.7 | L8: 218121702.5 | M8: 275559030.5 | N8: 268629663.4 | O8: 217744893.8 | P8: 215352451.1 | Q8: 175004830.3 | R8: 156817550.8 | S8: 153447790.7 | T8: 187085668.9 | U8: 185505048.3 | V8: 152371883.5 | W8: 169934455.1 | X8: 217126335.1 | Y8: 278188137.6 | Z8: 275640089 | AA8: 224332745.5 | AB8: 217609548.2 | AC8: 176817245.6 | AD8: 158911030.2 | AE8: 153582074.3 | AF8: 184262168.9
A9: WA011 | F9: 40592862.22 | G9: 42203866.68 | H9: 50192965 | I9: 49711718.43 | J9: 41932287.82 | K9: 43994957.17 | L9: 49009704.35 | M9: 55583195.25 | N9: 54534100.43 | O9: 46563116.17 | P9: 47841484.99 | Q9: 42297527.27 | R9: 41658882.59 | S9: 43046875.91 | T9: 50980027.34 | U9: 50007905.74 | V9: 42664678.42 | W9: 44726369.49 | X9: 49820311.33 | Y9: 56212997.6 | Z9: 54992725.78 | AA9: 47267049.68 | AB9: 48414716.29 | AC9: 42700990.48 | AD9: 42118473.69 | AE9: 43622376.49 | AF9: 51598859.11
A10: WA012 | F10: 4125878.937 | G10: 3909668.29 | H10: 4391985.215 | I10: 4359458.262 | J10: 3917969.974 | K10: 4492029.605 | L10: 5607270.101 | M10: 6988284.651 | N10: 7019723.303 | O10: 5965938.777 | P10: 5844343.429 | Q10: 4827602.57 | R10: 4325070.719 | S10: 4119619.922 | T10: 4577420.738 | U10: 4411587.194 | V10: 3996964.632 | W10: 4683034.656 | X10: 5700387.508 | Y10: 7106109.981 | Z10: 7205003.014 | AA10: 6166393.702 | AB10: 6009742.365 | AC10: 4967822.369 | AD10: 4461284.31 | AE10: 4285910.951 | AF10: 4695163.614
A11: WA021 | F11: 106030928.1 | G11: 110318296.5 | H11: 126099023.4 | I11: 121913771.3 | J11: 106696715.5 | K11: 115212075.7 | L11: 116934981.6 | M11: 121876064.9 | N11: 117465263.3 | O11: 103387554 | P11: 110048979.1 | Q11: 103306609.6 | R11: 106549540.6 | S11: 110937662.4 | T11: 125379440.3 | U11: 119447015.4 | V11: 105711329.2 | W11: 116054512.5 | X11: 117382601.2 | Y11: 121013399.6 | Z11: 116330301.6 | AA11: 103211480.2 | AB11: 109243223.2 | AC11: 102643754.7 | AD11: 106689172.6 | AE11: 111913340.1 | AF11: 126050587.7
A12: WA022 | F12: 2282518.843 | G12: 2201515.208 | H12: 2500732.218 | I12: 2440306.076 | J12: 2104374.562 | K12: 2336959.709 | L12: 2690129.148 | M12: 3205105.585 | N12: 3190170.53 | O12: 2684158.268 | P12: 2677075.198 | Q12: 2340787.279 | R12: 2253094.934 | S12: 2216584.149 | T12: 2482346.845 | U12: 2412607.042 | V12: 2116148.938 | W12: 2349159.769 | X12: 2645661.027 | Y12: 3116640.298 | Z12: 3118317.474 | AA12: 2685770.898 | AB12: 2656059.55 | AC12: 2310314.726 | AD12: 2234304.42 | AE12: 2208742.578 | AF12: 2472067.208
A13: WA025 | F13: 94315785.08 | G13: 96055580.24 | H13: 93099792.48 | I13: 99256250.53 | J13: 97718562.22 | K13: 96401446.02 | L13: 96489734.75 | M13: 94397352.57 | N13: 96007245.06 | O13: 94786165.54 | P13: 92669864.33 | Q13: 95467199.04 | R13: 94727900.87 | S13: 95953694.6 | T13: 94067411.29 | U13: 98186324.61 | V13: 98007423.59 | W13: 95483887.64 | X13: 96235516.49 | Y13: 93574724.95 | Z13: 94912583.74 | AA13: 94920175.3 | AB13: 91664760.23 | AC13: 95160123.71 | AD13: 94224976.89 | AE13: 95753709.52 | AF13: 94257388.52
A14: WA031 | F14: 12024162.37 | G14: 17642198.35 | H14: 23982643.04 | I14: 24448305.76 | J14: 17686778.74 | K14: 10702273.61 | L14: 4752631.645 | M14: 3900991.574 | N14: 3861576.984 | O14: 3490140.718 | P14: 4146977.981 | Q14: 6259576.765 | R14: 11751280.9 | S14: 17609337.94 | T14: 23848486.87 | U14: 24571470.23 | V14: 18514947.81 | W14: 11441175.34 | X14: 4888889.088 | Y14: 3897097.023 | Z14: 3868764.597 | AA14: 3518880.049 | AB14: 4050218.002 | AC14: 5911737.708 | AD14: 11355819.58 | AE14: 17631864.92 | AF14: 23823860.86
A15: WA032 | F15: 703926.2117 | G15: 1093025.147 | H15: 1708993.799 | I15: 1657958.672 | J15: 1075044.856 | K15: 585344.3185 | L15: 294630.1563 | M15: 283159.1187 | N15: 297982.262 | O15: 256753.3811 | P15: 270334.4211 | Q15: 404015.0359 | R15: 691125.1123 | S15: 1062907.959 | T15: 1697197.2 | U15: 1655423.618 | V15: 1093899.008 | W15: 604872.4453 | X15: 297219.9106 | Y15: 280192.7424 | Z15: 298511.6194 | AA15: 257391.3762 | AB15: 267704.0929 | AC15: 390606.2914 | AD15: 673694.0771 | AE15: 1037362.429 | AF15: 1691445.42
A16: WA04X | F16: 1511923.904 | G16: 1513801.195 | H16: 1514576.969 | I16: 1512356.426 | J16: 1515051.995 | K16: 1500133.406 | L16: 1498305.247 | M16: 1523830.539 | N16: 1518395.117 | O16: 1480773.105 | P16: 1486086.608 | Q16: 1493552.108 | R16: 1489472.885 | S16: 1492715.3 | T16: 1492537.225 | U16: 1487036.33 | V16: 1490798.322 | W16: 1479472.266 | X16: 1476952.754 | Y16: 1496245.88 | Z16: 1493390.909 | AA16: 1466506.641 | AB16: 1465773.936 | AC16: 1471495.38 | AD16: 1468461.319 | AE16: 1471511.605 | AF16: 1470862.797
D17: =SUM(D8:D16) -> 0 | E17: 0 | F17: 418212505.2 | G17: 428360474.8 | H17: 494296966.1 | I17: 494312156.6 | J17: 423661463.7 | K17: 444013778.2 | L17: 495399089.5 | M17: 563317014.7 | N17: 552524120.4 | O17: 476359493.7 | P17: =SUM(P8:P16) -> 480337597.1 | Q17: 431401699.9 | R17: 420263919.4 | S17: 429887188.8 | T17: 491610536.7 | U17: =SUM(U8:U16) -> 487684418.5 | V17: 425968073.4 | W17: 446756939.2 | X17: 495573874.5 | Y17: 564885545.7 | Z17: 557859687.7 | AA17: 483826393.3 | AB17: 481381745.8 | AC17: 432374090.9 | AD17: 422137217 | AE17: 431506892.9 | AF17: 490322404.1
A19: WA001 | D19: =D8 -> 0 | E19: 0 | F19: 156624519.6 | G19: 153422523.2 | H19: 190806254 | I19: 189012031.1 | J19: 151014678 | K19: 168788558.7 | L19: 218121702.5 | M19: 275559030.5 | N19: 268629663.4 | O19: 217744893.8 | P19: 215352451.1 | Q19: 175004830.3 | R19: 156817550.8 | S19: 153447790.7 | T19: 187085668.9 | U19: =U8 -> 185505048.3 | V19: 152371883.5 | W19: 169934455.1 | X19: 217126335.1 | Y19: 278188137.6 | Z19: 275640089 | AA19: 224332745.5 | AB19: 217609548.2 | AC19: 176817245.6 | AD19: 158911030.2 | AE19: 153582074.3 | AF19: 184262168.9 | AH19: =SUM(B19:M19) -> 1503349298 | AI19: =SUM(B19:T19) -> 2877432147
A20: WA011/12 | D20: =D9+D10 -> 0 | E20: 0 | F20: 44718741.15 | G20: 46113534.97 | H20: 54584950.22 | I20: 54071176.69 | J20: 45850257.8 | K20: 48486986.77 | L20: 54616974.45 | M20: 62571479.9 | N20: 61553823.74 | O20: 52529054.94 | P20: 53685828.42 | Q20: 47125129.84 | R20: 45983953.31 | S20: 47166495.83 | T20: 55557448.07 | U20: =U9+U10 -> 54419492.94 | V20: 46661643.06 | W20: 49409404.15 | X20: 55520698.84 | Y20: 63319107.58 | Z20: 62197728.79 | AA20: 53433443.38 | AB20: 54424458.65 | AC20: 47668812.85 | AD20: 46579758 | AE20: 47908287.44 | AF20: 56294022.72 | AH20: =SUM(B20:M20) -> 411014101.9 | AI20: =SUM(B20:T20) -> 774615836.1
A21: WA021/22 | D21: =D11+D12 -> 0 | E21: 0 | F21: 108313446.9 | G21: 112519811.7 | H21: 128599755.6 | I21: 124354077.4 | J21: 108801090.1 | K21: 117549035.4 | L21: 119625110.7 | M21: 125081170.5 | N21: 120655433.8 | O21: 106071712.2 | P21: 112726054.3 | Q21: 105647396.9 | R21: 108802635.5 | S21: 113154246.6 | T21: 127861787.2 | U21: =U11+U12 -> 121859622.5 | V21: 107827478.1 | W21: 118403672.3 | X21: 120028262.2 | Y21: 124130039.9 | Z21: 119448619.1 | AA21: 105897251.1 | AB21: 111899282.7 | AC21: 104954069.5 | AD21: 108923477 | AE21: 114122082.7 | AF21: 128522654.9 | AH21: 944843498.3 | AI21: 1739762765
A22: WA025 | D22: =D13 -> 0 | E22: 0 | F22: 94315785.08 | G22: 96055580.24 | H22: 93099792.48 | I22: 99256250.53 | J22: 97718562.22 | K22: 96401446.02 | L22: 96489734.75 | M22: 94397352.57 | N22: 96007245.06 | O22: 94786165.54 | P22: 92669864.33 | Q22: 95467199.04 | R22: 94727900.87 | S22: 95953694.6 | T22: 94067411.29 | U22: =U13 -> 98186324.61 | V22: 98007423.59 | W22: 95483887.64 | X22: 96235516.49 | Y22: 93574724.95 | Z22: 94912583.74 | AA22: 94920175.3 | AB22: 91664760.23 | AC22: 95160123.71 | AD22: 94224976.89 | AE22: 95753709.52 | AF22: 94257388.52 | AH22: 767734503.9 | AI22: 1431413985
A23: WA031/32 | D23: =D14+D15 -> 0 | E23: 0 | F23: 12728088.58 | G23: 18735223.5 | H23: 25691636.84 | I23: 26106264.43 | J23: 18761823.6 | K23: 11287617.93 | L23: 5047261.801 | M23: 4184150.693 | N23: 4159559.246 | O23: 3746894.099 | P23: 4417312.402 | Q23: 6663591.801 | R23: 12442406.02 | S23: 18672245.89 | T23: 25545684.07 | U23: =U14+U15 -> 26226893.85 | V23: 19608846.82 | W23: 12046047.78 | X23: 5186108.998 | Y23: 4177289.765 | Z23: 4167276.217 | AA23: 3776271.425 | AB23: 4317922.095 | AC23: 6302343.999 | AD23: 12029513.66 | AE23: 18669227.35 | AF23: 25515306.28 | AH23: 122542067.4 | AI23: 198189760.9
A24: WA04X | D24: =D16 -> 0 | E24: 0 | F24: 1511923.904 | G24: 1513801.195 | H24: 1514576.969 | I24: 1512356.426 | J24: 1515051.995 | K24: 1500133.406 | L24: 1498305.247 | M24: 1523830.539 | N24: 1518395.117 | O24: 1480773.105 | P24: 1486086.608 | Q24: 1493552.108 | R24: 1489472.885 | S24: 1492715.3 | T24: 1492537.225 | U24: =U16 -> 1487036.33 | V24: 1490798.322 | W24: 1479472.266 | X24: 1476952.754 | Y24: 1496245.88 | Z24: 1493390.909 | AA24: 1466506.641 | AB24: 1465773.936 | AC24: 1471495.38 | AD24: 1468461.319 | AE24: 1471511.605 | AF24: 1470862.797 | AH24: 12089979.68 | AI24: 22543512.03
A25: Total | D25: =SUM(D19:D24) -> 0 | E25: 0 | F25: 418212505.2 | G25: 428360474.8 | H25: 494296966.1 | I25: 494312156.6 | J25: 423661463.7 | K25: 444013778.2 | L25: 495399089.5 | M25: 563317014.7 | N25: 552524120.4 | O25: 476359493.7 | P25: =SUM(P19:P24) -> 480337597.1 | Q25: 431401699.9 | R25: 420263919.4 | S25: 429887188.8 | T25: 491610536.7 | U25: =SUM(U19:U24) -> 487684418.5 | V25: 425968073.4 | W25: 446756939.2 | X25: 495573874.5 | Y25: 564885545.7 | Z25: 557859687.7 | AA25: 483826393.3 | AB25: 481381745.8 | AC25: 432374090.9 | AD25: 422137217 | AE25: 431506892.9 | AF25: 490322404.1 | AH25: 3761573449 | AI25: 7043958005

Sheet Base Revenue
A1: AVISTA UTILITIES | Q1: This worksheet pulls data from 'Pres & Prop Rev' tab.
A2: WASHINGTON ELECTRIC
A3: PROPOSED INCREASE BY SERVICE SCHEDULE
A4: 12 MONTHS ENDED DECEMBER 31, 2016
A5: (000s of Dollars)
A6: Source: UE-170485 Compliance Filing, Attachment 1, Page 1
D8: Base Tariff | F8: Base Tariff | G8: Base | H8: Total Billed | J8: Percent | N8: Percent | R8: Percent | S8: Total Billed
D9: Revenue | E9: Total | F9: Revenue | G9: Tariff | H9: Revenue | I9: Total | J9: Increase | K9: Sch. 98 | L9: Sch. 93 | M9: Proposed | N9: Increase | R9: Increase | S9: Revenue
B10: Type of | C10: Schedule | D10: Under Present | E10: General | F10: Under Proposed | G10: Percent | H10: at Present | I10: General | J10: on Billed | K10: REC Revenue | L10: ERM | M10: General | N10: on Billed | R10: on Base | S10: at Proposed
A11: No. | B11: Service | C11: Number | D11: Rates(1) | E11: Increase | F11: Rates(1) | G11: Increase | H11: Rates (2) | I11: Increase | J11: Revenue | K11: Decrease | L11: Increase | M11: Increase | N11: Revenue | R11: Revenue | S11: Rates (2)
B12: (a) | C12: (b) | D12: (c) | E12: (d) | F12: (e) | G12: (f) | H12: (g) | I12: (h) | J12: (k) | K12: (j) | L12: (k) | M12: (j) | N12: (k) | P12: ="col (m) source" -> col (m) source
D13: =IF(Base1_Billing2<>1,"ERROR","") -> 
A14: 1 | B14: Residential | C14: 1 | D14: 209488.9307 | E14: 4904.45689 | F14: 214393.3876 | G14: 0.02341153241 | H14: 227177.7888 | I14: 4904.45689 | J14: =(I14)/H14 -> 0.02158862852 | K14: ='[3]Adder Schedule'!H11/1000 ->  | L14: =('[3]Pres & Prop Rev'!D23*(0))/1000 -> 0 | M14: =E14+L14 -> 4904.45689 | N14: =(M14)/H14 -> 0.02158862852 | P14: from Pres & Prop Rev tab | R14: =(E14+L14)/D14 -> 0.02341153241 | S14: =E14+H14+L14 -> 232082.2457 | U14: =#REF!/H14 ->  | V14: =#REF!/H14 -> 
A16: 2 | B16: General Service | C16: 11/12 | D16: 73765.85187 | E16: 1291.42647 | F16: 75057.47834 | G16: 0.0175071044 | H16: 77450.85029 | I16: 1291.42647 | J16: =(I16)/H16 -> 0.01667414193 | K16: ='[3]Adder Schedule'!H13/1000 ->  | L16: =('[3]Pres & Prop Rev'!E23*(0))/1000 -> 0 | M16: =E16+L16 -> 1291.42647 | N16: =(M16)/H16 -> 0.01667414193 | P16: from below | R16: =(E16+L16)/D16 -> 0.0175071044 | S16: =E16+H16+L16 -> 78742.27676 | U16: =#REF!/H16 ->  | V16: =#REF!/H16 -> 
A18: 3 | B18: Large General Service | C18: 21/22 | D18: 126766.2944 | E18: 2774.5582 | F18: 129540.7526 | G18: 0.0218871918 | H18: 133183.523 | I18: 2774.5582 | J18: 0.02083259353 | K18: ='[3]Adder Schedule'!H15/1000 ->  | L18: =('[3]Pres & Prop Rev'!F23*(0))/1000 -> 0 | M18: =E18+L18 -> 2774.5582 | N18: =(M18)/H18 -> 0.02083259353 | P18: from below | R18: =(E18+L18)/D18 -> 0.0218871918 | S18: =E18+H18+L18 -> 135958.0812 | U18: =#REF!/H18 ->  | V18: =#REF!/H18 -> 
A20: 4 | B20: Extra Large General Service | C20: 25 | D20: 64348.30152 | E20: 1405.0125 | F20: 65753.01402 | G20: 0.02193449239 | H20: 67050.37743 | I20: 1405.0125 | J20: 0.02095458003 | K20: ='[3]Adder Schedule'!H17/1000 ->  | L20: =('[3]Pres & Prop Rev'!G23*(0))/1000 -> 0 | M20: =E20+L20 -> 1405.0125 | N20: =(M20)/H20 -> 0.02095458003 | P20: from Pres & Prop Rev tab | R20: =(E20+L20)/D20 -> 0.02183449239 | S20: =E20+H20+L20 -> 68455.38993 | U20: =#REF!/H20 ->  | V20: =#REF!/H20 -> 
A22: 5 | B22: Pumping Service | C22: 30/31/32 | D22: 10894.09779 | E22: 238.12928 | F22: 11132.22707 | G22: 0.02185855906 | H22: 11443.43827 | I22: 238.12928 | J22: 0.02080924233 | K22: ='[3]Adder Schedule'!H19/1000 ->  | L22: =('[3]Pres & Prop Rev'!H23*(0))/1000 -> 0 | M22: =E22+L22 -> 238.12928 | N22: =(M22)/H22 -> 0.02080924233 | P22: from below | R22: =(E22+L22)/D22 -> 0.02185855906 | S22: =E22+H22+L22 -> 11681.56755 | U22: =#REF!/H22 ->  | V22: =#REF!/H22 -> 
A24: 6 | B24: Street & Area Lights | C24: 41-48 | D24: 6870.56812 | E24: 149.7032404 | F24: 7020.571361 | G24: 0.02178906282 | H24: 7222.884206 | I24: 149.7032404 | J24: 0.02072624122 | K24: ='[3]Adder Schedule'!H21/1000 ->  | L24: =('[3]Pres & Prop Rev'!I23*(0))/1000 -> 0 | M24: =E24+L24 -> 149.7032404 | N24: =(M24)/H24 -> 0.02072624122 | P24: from Pres & Prop Rev tab | R24: =(E24+L24)/D24 -> 0.02178906282 | S24: =E24+H24+L24 -> 7372.587446 | U24: =#REF!/H24 ->  | V24: =#REF!/H24 -> 
A26: 7 | B26: Total | D26: =SUM(D14:D24) -> 492134.0445 | E26: =SUM(E14:E24) -> 10763.28658 | F26: =SUM(F14:F24) -> 502897.431 | G26: =E26/D26 -> 0.02187064013 | H26: =SUM(H14:H24) -> 523528.862 | I26: =E26 -> 10763.28658 | J26: 0.02055910832 | K26: =SUM(K14:K25) ->  | L26: =SUM(L14:L24) -> 0 | M26: =E26+L26 -> 10763.28658 | N26: =(M26)/H26 -> 0.02055910832 | P26: from below | R26: =(E26+L26)/D26 -> 0.02187064013 | S26: =E26+H26+L26 -> 534292.1485 | U26: =#REF!/H26 ->  | V26: =#REF!/H26 -> 
D28: =IF(Base1_Billing2=2,"Exhibit won't work until Base1_Billing2 range set to '1'","") -> 
A31: (1) Excludes all present rate adjustments: Schedule 59 (BPA Residential Exchange), Schedule 91 (DSM),
A32: Schedule 92 (LIRAP), Schedule 93 (ERM), and Schedule 98 (REC Revenue).
A34: (2) Includes all present rate adjustments: Schedule 59 (BPA Residential Exchange), Schedule 91 (DSM),
A35: Schedule 92 (LIRAP), Schedule 93 (ERM), and Schedule 98 (REC Revenue).
B38: reduce billed revenue for BPA ResEx (already accounted for in Schs 1 & 48)
F39: Billing | I39: Billed Revenue
F40: Determinants | H40: Sch 59 Rate | I40: Impact
B41: Schedule 12 only | F41: ='[3]Rev Runs 12MESEPT2014'!P49+'[3]Rev Runs 12MESEPT2014'!P81+'[3]Rev Runs 12MESEPT2014'!P90 -> 57963673 | H41: -0.00027 | I41: =F41*H41 -> -15650.19171
B42: Schedule 22 only | F42: ='[3]Rev Runs 12MESEPT2014'!P51+'[3]Rev Runs 12MESEPT2014'!P83+'[3]Rev Runs 12MESEPT2014'!P92 -> 36956089 | H42: -0.00027 | I42: =F42*H42 -> -9978.14403
B43: Schedule 32 only | F43: ='[3]Rev Runs 12MESEPT2014'!P55+'[3]Rev Runs 12MESEPT2014'!P86+'[3]Rev Runs 12MESEPT2014'!P95 -> 8649684 | H43: -0.00027 | I43: =F43*H43 -> -2335.41468
B45: Total | F45: =SUM(F41:F44) -> 103569446 | I45: =SUM(I41:I44) -> -27963.75042 | J45: Manually deducted in Column H
J48: ERM Reduction Calc | L48: 0 | M48: 1 | N48: =-D14*$L$49 -> 0 | P48: =0/'[3]Pres & Prop Rev'!D23 -> 0 | Q48: =(D14/$D$26)*$N$54 -> 0
L49: =L48/D26 -> 0 | M49: 11 | N49: =-D16*L49 -> 0 | Q49: =(D16/$D$26)*$N$54 -> 0
M50: 21 | N50: =-D18*L49 -> 0 | Q50: =(D18/$D$26)*$N$54 -> 0
M51: 25 | N51: =-D20*L49 -> 0 | Q51: =(D20/$D$26)*$N$54 -> 0
M52: 31 | N52: =-D22*L49 -> 0 | Q52: =(D22/$D$26)*$N$54 -> 0
M53: 41-48 | N53: =-D24*L49 -> 0 | Q53: =(D24/$D$26)*$N$54 -> 0
N54: =SUM(N48:N53) -> 0 | Q54: =SUM(Q48:Q53) -> 0
